[Event "Titled Tuesday Blitz July 25 Early 2023"]
[White "ChessBrah"]
[Black "De Silva, L M S T"]
[BlackFideId "9953698"]
[WhiteElo "2936"]
[BlackElo "2725"]
[Result "0-1"]
[Round "3"]
[TimeControl "180+2"]
[Date "2023.07.25"]
[WhiteClock "0:00:09"]
[BlackClock "0:00:22"]
[Board "19"]

1. b3 {[%clk 0:03:00]}  e5 {[%clk 0:02:58]} 2. Bb2 {[%clk 0:02:59]}  Nc6 {[%clk 0:02:47]} 3. e3 {[%clk 0:02:59]}  Nf6 {[%clk 0:02:44]} 4. Bb5 {[%clk 0:02:58]}  Bd6 {[%clk 0:02:42]} 5. Ne2 {[%clk 0:02:49]}  O-O {[%clk 0:02:38]} 6. Ng3 {[%clk 0:02:49]}  a6 {[%clk 0:02:35]} 7. Bxc6 {[%clk 0:02:49]}  dxc6 {[%clk 0:02:36]} 8. O-O {[%clk 0:02:49]}  Qe7 {[%clk 0:02:15]} 9. d3 {[%clk 0:02:47]}  Ng4 {[%clk 0:02:09]} 10. h3 {[%clk 0:02:42]}  Nh6 {[%clk 0:02:09]} 11. e4 {[%clk 0:02:38]}  f5 {[%clk 0:02:08]} 12. exf5 {[%clk 0:02:38]}  Nxf5 {[%clk 0:02:09]} 13. Nxf5 {[%clk 0:02:34]}  Bxf5 {[%clk 0:02:10]} 14. Nd2 {[%clk 0:02:34]}  Rf6 {[%clk 0:01:39]} 15. Nc4 {[%clk 0:02:12]}  Raf8 {[%clk 0:01:27]} 16. Nxd6 {[%clk 0:01:55]}  cxd6 {[%clk 0:01:28]} 17. Qf3 {[%clk 0:01:55]}  Be6 {[%clk 0:01:25]} 18. Qe3 {[%clk 0:01:52]}  Rg6 {[%clk 0:01:17]} 19. Kh2 {[%clk 0:01:42]}  Qh4 {[%clk 0:01:10]} 20. c4 {[%clk 0:01:08]}  c5 {[%clk 0:00:51]} 21. Rae1 {[%clk 0:01:04]}  Rf4 {[%clk 0:00:47]} 22. Re2 {[%clk 0:00:58]}  Bd7 {[%clk 0:00:47]} 23. Rg1 {[%clk 0:00:47]}  Bc6 {[%clk 0:00:43]} 24. Bxe5 {[%clk 0:00:17]}  dxe5 {[%clk 0:00:42]} 25. Qxe5 {[%clk 0:00:16]}  Rxf2 {[%clk 0:00:27]} 26. b4 {[%clk 0:00:09]}  Rxe2 {[%clk 0:00:22]} 27. Qxe2 {[%clk 0:00:09]}  Qg3+ {[%clk 0:00:22]} 0-1


[Site "https://www.chess.com"]

[Event "Titled Tuesday Blitz July 25 Early 2023"]
[White "Suyarov, Mukhammadzokhid"]
[Black "Megaranto, Susanto"]
[WhiteFideId "14210495"]
[BlackFideId "7101384"]
[WhiteElo "2722"]
[BlackElo "2935"]
[Result "1/2-1/2"]
[Round "3"]
[TimeControl "180+2"]
[Date "2023.07.25"]
[WhiteClock "0:00:14"]
[BlackClock "0:00:04"]
[Board "20"]

1. d4 {[%clk 0:03:00]}  d5 {[%clk 0:02:53]} 2. Nc3 {[%clk 0:02:58]}  c6 {[%clk 0:02:52]} 3. Bf4 {[%clk 0:02:59]}  Bf5 {[%clk 0:02:43]} 4. f3 {[%clk 0:02:55]}  e6 {[%clk 0:02:43]} 5. e4 {[%clk 0:02:53]}  Bg6 {[%clk 0:02:43]} 6. h4 {[%clk 0:02:53]}  h5 {[%clk 0:02:32]} 7. Nge2 {[%clk 0:02:52]}  Nf6 {[%clk 0:02:26]} 8. Bg5 {[%clk 0:02:45]}  Be7 {[%clk 0:02:24]} 9. Nf4 {[%clk 0:02:39]}  Bh7 {[%clk 0:02:17]} 10. e5 {[%clk 0:02:35]}  Nfd7 {[%clk 0:02:14]} 11. Nxh5 {[%clk 0:02:17]}  Bg6 {[%clk 0:01:36]} 12. Ng3 {[%clk 0:01:38]}  Bxg5 {[%clk 0:01:33]} 13. hxg5 {[%clk 0:01:39]}  Rxh1 {[%clk 0:01:33]} 14. Nxh1 {[%clk 0:01:40]}  Qxg5 {[%clk 0:01:33]} 15. Qd2 {[%clk 0:01:41]}  Qxd2+ {[%clk 0:01:21]} 16. Kxd2 {[%clk 0:01:42]}  a6 {[%clk 0:01:15]} 17. b3 {[%clk 0:01:15]}  c5 {[%clk 0:01:12]} 18. dxc5 {[%clk 0:01:05]}  Nc6 {[%clk 0:01:09]} 19. f4 {[%clk 0:01:02]}  Nxc5 {[%clk 0:01:09]} 20. Nf2 {[%clk 0:00:59]}  O-O-O {[%clk 0:01:03]} 21. Bd3 {[%clk 0:00:57]}  Rh8 {[%clk 0:00:56]} 22. Bxg6 {[%clk 0:00:55]}  fxg6 {[%clk 0:00:57]} 23. Rh1 {[%clk 0:00:55]}  Rf8 {[%clk 0:00:51]} 24. Ne2 {[%clk 0:00:45]}  g5 {[%clk 0:00:44]} 25. Rh7 {[%clk 0:00:32]}  gxf4 {[%clk 0:00:44]} 26. Rxg7 {[%clk 0:00:32]}  Nxe5 {[%clk 0:00:36]} 27. b4 {[%clk 0:00:32]}  Ne4+ {[%clk 0:00:36]} 28. Nxe4 {[%clk 0:00:32]}  dxe4 {[%clk 0:00:37]} 29. Nd4 {[%clk 0:00:33]}  f3 {[%clk 0:00:28]} 30. gxf3 {[%clk 0:00:33]}  exf3 {[%clk 0:00:25]} 31. Ke1 {[%clk 0:00:33]}  f2+ {[%clk 0:00:23]} 32. Kf1 {[%clk 0:00:33]}  Nc4 {[%clk 0:00:23]} 33. Rc7+ {[%clk 0:00:24]}  Kxc7 {[%clk 0:00:18]} 34. Nxe6+ {[%clk 0:00:25]}  Kd6 {[%clk 0:00:16]} 35. Nxf8 {[%clk 0:00:25]}  Ne3+ {[%clk 0:00:16]} 36. Kxf2 {[%clk 0:00:25]}  Nxc2 {[%clk 0:00:17]} 37. b5 {[%clk 0:00:19]}  a5 {[%clk 0:00:17]} 38. Ke2 {[%clk 0:00:19]}  Kc5 {[%clk 0:00:14]} 39. Kd3 {[%clk 0:00:18]}  Nb4+ {[%clk 0:00:13]} 40. Kc3 {[%clk 0:00:19]}  Nxa2+ {[%clk 0:00:12]} 41. Kb3 {[%clk 0:00:19]}  Nb4 {[%clk 0:00:10]} 42. Ka4 {[%clk 0:00:20]}  b6 {[%clk 0:00:10]} 43. Nd7+ {[%clk 0:00:20]}  Kd6 {[%clk 0:00:09]} 44. Nxb6 {[%clk 0:00:21]}  Nc2 {[%clk 0:00:07]} 45. Nc4+ {[%clk 0:00:15]}  Kc5 {[%clk 0:00:07]} 46. Ne5 {[%clk 0:00:15]}  Nd4 {[%clk 0:00:05]} 47. Nd7+ {[%clk 0:00:14]}  Kd6 {[%clk 0:00:04]} 48. Kxa5 {[%clk 0:00:14]}  Nxb5 {[%clk 0:00:04]} 1/2-1/2


[Site "https://www.chess.com"]

[Event "Titled Tuesday Blitz July 25 Early 2023"]
[White "realmadridfc123"]
[Black "Hovhannisyan, Robert"]
[BlackFideId "13302507"]
[WhiteElo "2720"]
[BlackElo "2929"]
[Result "0-1"]
[Round "3"]
[TimeControl "180+2"]
[Date "2023.07.25"]
[WhiteClock "0:00:04"]
[BlackClock "0:00:39"]
[Board "21"]

1. c4 {[%clk 0:03:00]}  e5 {[%clk 0:02:57]} 2. Nc3 {[%clk 0:03:00]}  Bb4 {[%clk 0:02:56]} 3. Nf3 {[%clk 0:02:59]}  Bxc3 {[%clk 0:02:56]} 4. dxc3 {[%clk 0:03:00]}  Nc6 {[%clk 0:02:56]} 5. g3 {[%clk 0:02:58]}  d6 {[%clk 0:02:56]} 6. Bg2 {[%clk 0:02:59]}  f5 {[%clk 0:02:56]} 7. O-O {[%clk 0:02:59]}  Nf6 {[%clk 0:02:56]} 8. b3 {[%clk 0:02:40]}  O-O {[%clk 0:02:56]} 9. a4 {[%clk 0:02:41]}  a5 {[%clk 0:02:54]} 10. Ba3 {[%clk 0:02:41]}  Qe8 {[%clk 0:02:49]} 11. Ne1 {[%clk 0:02:37]}  f4 {[%clk 0:02:38]} 12. e3 {[%clk 0:02:25]}  Bg4 {[%clk 0:02:26]} 13. Qd2 {[%clk 0:02:17]}  fxg3 {[%clk 0:02:14]} 14. fxg3 {[%clk 0:02:12]}  Qh5 {[%clk 0:02:10]} 15. Nd3 {[%clk 0:01:57]}  Bh3 {[%clk 0:02:04]} 16. Bxh3 {[%clk 0:01:57]}  Qxh3 {[%clk 0:02:05]} 17. Qg2 {[%clk 0:01:57]}  Qxg2+ {[%clk 0:01:58]} 18. Kxg2 {[%clk 0:01:58]}  Ne4 {[%clk 0:01:59]} 19. Nf2 {[%clk 0:01:31]}  Nxf2 {[%clk 0:01:45]} 20. Rxf2 {[%clk 0:01:32]}  b6 {[%clk 0:01:45]} 21. Raf1 {[%clk 0:01:28]}  Rxf2+ {[%clk 0:01:43]} 22. Rxf2 {[%clk 0:01:28]}  Nd8 {[%clk 0:01:40]} 23. e4 {[%clk 0:01:12]}  Ne6 {[%clk 0:01:39]} 24. Kf3 {[%clk 0:01:11]}  Kf7 {[%clk 0:01:33]} 25. Ke3+ {[%clk 0:01:11]}  Ke7 {[%clk 0:01:34]} 26. Kd3 {[%clk 0:01:04]}  h5 {[%clk 0:01:33]} 27. h4 {[%clk 0:00:50]}  Rg8 {[%clk 0:01:29]} 28. b4 {[%clk 0:00:38]}  Ra8 {[%clk 0:01:24]} 29. c5 {[%clk 0:00:32]}  axb4 {[%clk 0:01:20]} 30. cxd6+ {[%clk 0:00:28]}  cxd6 {[%clk 0:01:20]} 31. Bxb4 {[%clk 0:00:28]}  Rxa4 {[%clk 0:01:18]} 32. Rf5 {[%clk 0:00:29]}  g6 {[%clk 0:01:17]} 33. Rxe5 {[%clk 0:00:28]}  Rxb4 {[%clk 0:00:49]} 34. Rxe6+ {[%clk 0:00:28]}  Kxe6 {[%clk 0:00:50]} 35. cxb4 {[%clk 0:00:28]}  Ke5 {[%clk 0:00:50]} 36. Ke3 {[%clk 0:00:16]}  b5 {[%clk 0:00:49]} 37. Kd3 {[%clk 0:00:13]}  d5 {[%clk 0:00:49]} 38. exd5 {[%clk 0:00:11]}  Kxd5 {[%clk 0:00:50]} 39. Ke3 {[%clk 0:00:07]}  Kc4 {[%clk 0:00:50]} 40. Kf4 {[%clk 0:00:05]}  Kxb4 {[%clk 0:00:50]} 41. Kg5 {[%clk 0:00:06]}  Kc5 {[%clk 0:00:45]} 42. Kxg6 {[%clk 0:00:06]}  b4 {[%clk 0:00:45]} 43. Kxh5 {[%clk 0:00:04]}  b3 {[%clk 0:00:45]} 44. g4 {[%clk 0:00:05]}  b2 {[%clk 0:00:46]} 45. g5 {[%clk 0:00:06]}  b1=Q {[%clk 0:00:46]} 46. Kh6 {[%clk 0:00:07]}  Kd6 {[%clk 0:00:43]} 47. g6 {[%clk 0:00:05]}  Ke7 {[%clk 0:00:39]} 48. h5 {[%clk 0:00:04]} 0-1


[Site "https://www.chess.com"]

[Event "Titled Tuesday Blitz July 25 Early 2023"]
[White "Williams, Simon K"]
[Black "Tari, Aryan"]
[WhiteFideId "404454"]
[BlackFideId "1510045"]
[WhiteElo "2717"]
[BlackElo "2912"]
[Result "0-1"]
[Round "3"]
[TimeControl "180+2"]
[Date "2023.07.25"]
[WhiteClock "0:00:03"]
[BlackClock "0:00:21"]
[Board "24"]

1. f4 {[%clk 0:03:00]}  b6 {[%clk 0:02:47]} 2. Nf3 {[%clk 0:02:58]}  Bb7 {[%clk 0:02:47]} 3. e3 {[%clk 0:02:58]}  g6 {[%clk 0:02:47]} 4. Be2 {[%clk 0:02:58]}  Bg7 {[%clk 0:02:48]} 5. O-O {[%clk 0:02:58]}  c5 {[%clk 0:02:48]} 6. d3 {[%clk 0:02:58]}  d6 {[%clk 0:02:48]} 7. e4 {[%clk 0:02:58]}  Nc6 {[%clk 0:02:48]} 8. c3 {[%clk 0:02:57]}  Qd7 {[%clk 0:02:46]} 9. Kh1 {[%clk 0:02:55]}  Nf6 {[%clk 0:02:43]} 10. Qe1 {[%clk 0:02:50]}  c4 {[%clk 0:02:29]} 11. Na3 {[%clk 0:02:38]}  cxd3 {[%clk 0:02:29]} 12. Bxd3 {[%clk 0:02:39]}  O-O {[%clk 0:02:27]} 13. f5 {[%clk 0:02:33]}  d5 {[%clk 0:01:39]} 14. e5 {[%clk 0:02:19]}  Ne4 {[%clk 0:01:39]} 15. Qh4 {[%clk 0:01:59]}  Nxe5 {[%clk 0:01:19]} 16. Nxe5 {[%clk 0:01:35]}  Bxe5 {[%clk 0:01:20]} 17. Bh6 {[%clk 0:01:33]}  Bf6 {[%clk 0:01:18]} 18. Qh3 {[%clk 0:01:16]}  Rfd8 {[%clk 0:01:18]} 19. Nc2 {[%clk 0:01:08]}  Nc5 {[%clk 0:01:10]} 20. Be2 {[%clk 0:01:00]}  Qa4 {[%clk 0:00:45]} 21. Nd4 {[%clk 0:00:34]}  Bxd4 {[%clk 0:00:41]} 22. cxd4 {[%clk 0:00:33]}  Qxd4 {[%clk 0:00:42]} 23. fxg6 {[%clk 0:00:33]}  hxg6 {[%clk 0:00:42]} 24. Rad1 {[%clk 0:00:26]}  Qe5 {[%clk 0:00:39]} 25. Bg4 {[%clk 0:00:16]}  Ne4 {[%clk 0:00:31]} 26. Bf4 {[%clk 0:00:10]}  Qg7 {[%clk 0:00:30]} 27. Bf3 {[%clk 0:00:05]}  d4 {[%clk 0:00:28]} 28. Bxe4 {[%clk 0:00:05]}  Bxe4 {[%clk 0:00:28]} 29. Qg3 {[%clk 0:00:06]}  Rd5 {[%clk 0:00:26]} 30. Rfe1 {[%clk 0:00:05]}  f5 {[%clk 0:00:24]} 31. h4 {[%clk 0:00:05]}  Rc8 {[%clk 0:00:23]} 32. h5 {[%clk 0:00:05]}  gxh5 {[%clk 0:00:23]} 33. Qh2 {[%clk 0:00:05]}  Rc2 {[%clk 0:00:23]} 34. Rg1 {[%clk 0:00:05]}  Qg4 {[%clk 0:00:22]} 35. Rdf1 {[%clk 0:00:03]}  h4 {[%clk 0:00:21]} 0-1


[Site "https://www.chess.com"]

[Event "Titled Tuesday Blitz July 25 Early 2023"]
[White "Leon Oquendo, Jorge"]
[Black "Harsha Bharathakoti"]
[WhiteFideId "3514803"]
[BlackFideId "5078776"]
[WhiteElo "2706"]
[BlackElo "2875"]
[Result "0-1"]
[Round "3"]
[TimeControl "180+2"]
[Date "2023.07.25"]
[WhiteClock "0:00:03"]
[BlackClock "0:00:04"]
[Board "29"]

1. d4 {[%clk 0:03:00]}  Nf6 {[%clk 0:02:59]} 2. c4 {[%clk 0:02:59]}  c5 {[%clk 0:02:54]} 3. d5 {[%clk 0:02:58]}  e6 {[%clk 0:02:55]} 4. Nc3 {[%clk 0:02:58]}  exd5 {[%clk 0:02:55]} 5. cxd5 {[%clk 0:02:59]}  d6 {[%clk 0:02:55]} 6. Nf3 {[%clk 0:02:58]}  g6 {[%clk 0:02:54]} 7. h3 {[%clk 0:02:58]}  Bg7 {[%clk 0:02:54]} 8. Bf4 {[%clk 0:02:59]}  a6 {[%clk 0:02:53]} 9. a4 {[%clk 0:02:58]}  O-O {[%clk 0:02:53]} 10. e3 {[%clk 0:02:58]}  Ne8 {[%clk 0:02:46]} 11. Be2 {[%clk 0:02:55]}  Nd7 {[%clk 0:02:46]} 12. O-O {[%clk 0:02:54]}  Ne5 {[%clk 0:02:43]} 13. Nd2 {[%clk 0:02:54]}  Rb8 {[%clk 0:02:38]} 14. Bh2 {[%clk 0:02:51]}  Qe7 {[%clk 0:02:34]} 15. Qc2 {[%clk 0:02:44]}  Nc7 {[%clk 0:02:31]} 16. f4 {[%clk 0:02:32]}  Nd7 {[%clk 0:02:30]} 17. e4 {[%clk 0:02:33]}  b5 {[%clk 0:02:28]} 18. axb5 {[%clk 0:02:30]}  axb5 {[%clk 0:02:25]} 19. Ra7 {[%clk 0:02:25]}  Qd8 {[%clk 0:02:25]} 20. e5 {[%clk 0:02:09]}  dxe5 {[%clk 0:02:25]} 21. d6 {[%clk 0:02:07]}  Ne6 {[%clk 0:02:22]} 22. fxe5 {[%clk 0:01:52]}  Nxe5 {[%clk 0:02:06]} 23. Nxb5 {[%clk 0:01:45]}  Bd7 {[%clk 0:01:56]} 24. Nc3 {[%clk 0:00:37]}  Nd4 {[%clk 0:01:53]} 25. Qc1 {[%clk 0:00:37]}  Qb6 {[%clk 0:01:26]} 26. Rxd7 {[%clk 0:00:30]}  Nxd7 {[%clk 0:01:25]} 27. Nc4 {[%clk 0:00:31]}  Nxe2+ {[%clk 0:01:11]} 28. Nxe2 {[%clk 0:00:32]}  Qc6 {[%clk 0:01:11]} 29. Nc3 {[%clk 0:00:29]}  Rb4 {[%clk 0:01:07]} 30. Ne3 {[%clk 0:00:21]}  Nb6 {[%clk 0:00:44]} 31. Kh1 {[%clk 0:00:16]}  h5 {[%clk 0:00:40]} 32. Qd2 {[%clk 0:00:15]}  Rd4 {[%clk 0:00:39]} 33. Qf2 {[%clk 0:00:14]}  Nc8 {[%clk 0:00:29]} 34. Nc2 {[%clk 0:00:07]}  Nxd6 {[%clk 0:00:12]} 35. Nxd4 {[%clk 0:00:06]}  cxd4 {[%clk 0:00:13]} 36. Bxd6 {[%clk 0:00:04]}  Qxd6 {[%clk 0:00:14]} 37. Ne4 {[%clk 0:00:04]}  Qe5 {[%clk 0:00:12]} 38. Qf3 {[%clk 0:00:05]}  Kh8 {[%clk 0:00:07]} 39. b4 {[%clk 0:00:05]}  Qb5 {[%clk 0:00:07]} 40. Rb1 {[%clk 0:00:02]}  d3 {[%clk 0:00:03]} 41. Nc5 {[%clk 0:00:02]}  d2 {[%clk 0:00:03]} 42. Qd3 {[%clk 0:00:01]}  Qxd3 {[%clk 0:00:03]} 43. Nxd3 {[%clk 0:00:02]}  Rc8 {[%clk 0:00:02]} 44. Kh2 {[%clk 0:00:01]}  Rc3 {[%clk 0:00:01]} 45. Nf2 {[%clk 0:00:01]}  Be5+ {[%clk 0:00:02]} 46. g3 {[%clk 0:00:01]}  Bxg3+ {[%clk 0:00:02]} 47. Kg2 {[%clk 0:00:02]}  Bxf2 {[%clk 0:00:03]} 48. Kxf2 {[%clk 0:00:03]}  Rc1 {[%clk 0:00:04]} 0-1


[Site "https://www.chess.com"]

[Event "Titled Tuesday Blitz July 25 Early 2023"]
[White "Panesar Vedant"]
[Black "Kazakouski, Valery"]
[WhiteFideId "35033018"]
[BlackFideId "13507443"]
[WhiteElo "2701"]
[BlackElo "2863"]
[Result "1/2-1/2"]
[Round "3"]
[TimeControl "180+2"]
[Date "2023.07.25"]
[WhiteClock "0:00:32"]
[BlackClock "0:00:04"]
[Board "32"]

1. d4 {[%clk 0:03:00]}  Nf6 {[%clk 0:02:56]} 2. c4 {[%clk 0:03:01]}  e6 {[%clk 0:02:56]} 3. g3 {[%clk 0:03:01]}  d5 {[%clk 0:02:56]} 4. Bg2 {[%clk 0:03:02]}  dxc4 {[%clk 0:02:57]} 5. Nf3 {[%clk 0:03:02]}  c6 {[%clk 0:02:58]} 6. O-O {[%clk 0:03:02]}  b5 {[%clk 0:02:58]} 7. Ne5 {[%clk 0:03:00]}  Bb7 {[%clk 0:02:58]} 8. a4 {[%clk 0:02:59]}  a6 {[%clk 0:02:56]} 9. b3 {[%clk 0:03:00]}  cxb3 {[%clk 0:02:54]} 10. Qxb3 {[%clk 0:03:01]}  Qxd4 {[%clk 0:02:55]} 11. Bb2 {[%clk 0:03:01]}  Qb4 {[%clk 0:02:55]} 12. Qc2 {[%clk 0:03:01]}  Qc5 {[%clk 0:02:55]} 13. Qd3 {[%clk 0:02:59]}  Be7 {[%clk 0:02:50]} 14. Rc1 {[%clk 0:02:58]}  Qd6 {[%clk 0:02:45]} 15. Qb3 {[%clk 0:02:36]}  O-O {[%clk 0:02:36]} 16. Rd1 {[%clk 0:02:33]}  Qc7 {[%clk 0:02:36]} 17. Nd2 {[%clk 0:02:29]}  Nbd7 {[%clk 0:02:23]} 18. Nxd7 {[%clk 0:02:28]}  Nxd7 {[%clk 0:02:14]} 19. Qf3 {[%clk 0:02:27]}  Rab8 {[%clk 0:02:04]} 20. Qh5 {[%clk 0:02:24]}  Nf6 {[%clk 0:01:44]} 21. Be5 {[%clk 0:02:19]}  Nxh5 {[%clk 0:01:35]} 22. Bxc7 {[%clk 0:02:20]}  Rbc8 {[%clk 0:01:35]} 23. Bb6 {[%clk 0:02:19]}  Nf6 {[%clk 0:01:32]} 24. axb5 {[%clk 0:02:13]}  axb5 {[%clk 0:01:33]} 25. Ra7 {[%clk 0:02:14]}  Rb8 {[%clk 0:01:21]} 26. Bc7 {[%clk 0:02:12]}  Bc5 {[%clk 0:01:20]} 27. Bxb8 {[%clk 0:02:11]}  Rxb8 {[%clk 0:01:21]} 28. Ra2 {[%clk 0:02:07]}  Nd5 {[%clk 0:01:16]} 29. Rc1 {[%clk 0:02:04]}  Bf8 {[%clk 0:00:48]} 30. Nb3 {[%clk 0:02:02]}  b4 {[%clk 0:00:49]} 31. Bxd5 {[%clk 0:01:57]}  cxd5 {[%clk 0:00:43]} 32. Ra7 {[%clk 0:01:57]}  f6 {[%clk 0:00:28]} 33. Kf1 {[%clk 0:01:24]}  e5 {[%clk 0:00:26]} 34. Ke1 {[%clk 0:01:09]}  d4 {[%clk 0:00:25]} 35. Ra5 {[%clk 0:00:59]}  Bc8 {[%clk 0:00:23]} 36. Rb1 {[%clk 0:00:56]}  Be6 {[%clk 0:00:23]} 37. Kd2 {[%clk 0:00:54]}  Rc8 {[%clk 0:00:21]} 38. Ra6 {[%clk 0:00:48]}  Bf7 {[%clk 0:00:20]} 39. Nc1 {[%clk 0:00:44]}  h5 {[%clk 0:00:15]} 40. Rb6 {[%clk 0:00:44]}  Be7 {[%clk 0:00:12]} 41. Nd3 {[%clk 0:00:42]}  b3 {[%clk 0:00:11]} 42. Nc1 {[%clk 0:00:42]}  Bc5 {[%clk 0:00:10]} 43. Rb5 {[%clk 0:00:37]}  Bc4 {[%clk 0:00:10]} 44. Rb7 {[%clk 0:00:37]}  Bd5 {[%clk 0:00:10]} 45. Rb5 {[%clk 0:00:38]}  Bc4 {[%clk 0:00:11]} 46. Rb7 {[%clk 0:00:38]}  Ba6 {[%clk 0:00:11]} 47. Rd7 {[%clk 0:00:37]}  Bb5 {[%clk 0:00:06]} 48. Rb7 {[%clk 0:00:37]}  Ba6 {[%clk 0:00:04]} 49. Rd7 {[%clk 0:00:36]}  Bb5 {[%clk 0:00:04]} 50. Rb7 {[%clk 0:00:32]}  Ba6 {[%clk 0:00:04]} 1/2-1/2


[Site "https://www.chess.com"]

[Event "Titled Tuesday Blitz July 25 Early 2023"]
[White "Ilamparthi A R"]
[Black "Antal, Gergely"]
[WhiteFideId "45015775"]
[BlackFideId "717312"]
[WhiteElo "2853"]
[BlackElo "2678"]
[Result "1-0"]
[Round "3"]
[TimeControl "180+2"]
[Date "2023.07.25"]
[WhiteClock "0:00:48"]
[BlackClock "0:00:06"]
[Board "35"]

1. e4 {[%clk 0:03:00]}  c6 {[%clk 0:03:00]} 2. d3 {[%clk 0:03:00]}  d5 {[%clk 0:03:00]} 3. Nd2 {[%clk 0:03:00]}  e5 {[%clk 0:02:59]} 4. Ngf3 {[%clk 0:03:00]}  Bd6 {[%clk 0:02:59]} 5. d4 {[%clk 0:03:00]}  exd4 {[%clk 0:02:56]} 6. exd5 {[%clk 0:03:00]}  cxd5 {[%clk 0:02:57]} 7. Nxd4 {[%clk 0:02:52]}  Nf6 {[%clk 0:02:57]} 8. Bb5+ {[%clk 0:02:44]}  Bd7 {[%clk 0:02:57]} 9. Qe2+ {[%clk 0:02:44]}  Qe7 {[%clk 0:02:49]} 10. Bxd7+ {[%clk 0:02:42]}  Nbxd7 {[%clk 0:02:47]} 11. Nf5 {[%clk 0:02:43]}  Qxe2+ {[%clk 0:02:46]} 12. Kxe2 {[%clk 0:02:44]}  Bf8 {[%clk 0:02:46]} 13. Re1 {[%clk 0:02:41]}  O-O-O {[%clk 0:02:45]} 14. Kf1 {[%clk 0:02:40]}  g6 {[%clk 0:02:45]} 15. Nd4 {[%clk 0:02:39]}  Bg7 {[%clk 0:02:44]} 16. N2f3 {[%clk 0:02:36]}  Ne4 {[%clk 0:02:41]} 17. Bf4 {[%clk 0:02:36]}  a6 {[%clk 0:02:04]} 18. c4 {[%clk 0:02:20]}  Bxd4 {[%clk 0:01:53]} 19. Nxd4 {[%clk 0:02:19]}  g5 {[%clk 0:01:47]} 20. Be3 {[%clk 0:02:05]}  dxc4 {[%clk 0:01:41]} 21. Rac1 {[%clk 0:01:55]}  b5 {[%clk 0:01:18]} 22. a4 {[%clk 0:01:54]}  c3 {[%clk 0:00:45]} 23. axb5 {[%clk 0:01:40]}  Ndc5 {[%clk 0:00:40]} 24. f3 {[%clk 0:01:29]}  cxb2 {[%clk 0:00:08]} 25. Rc2 {[%clk 0:01:26]}  Kb7 {[%clk 0:00:07]} 26. bxa6+ {[%clk 0:01:22]}  Kxa6 {[%clk 0:00:07]} 27. fxe4 {[%clk 0:01:15]}  Nd3 {[%clk 0:00:08]} 28. Rb1 {[%clk 0:01:10]}  Rc8 {[%clk 0:00:08]} 29. Ke2 {[%clk 0:01:06]}  Rxc2+ {[%clk 0:00:08]} 30. Nxc2 {[%clk 0:01:07]}  Rd8 {[%clk 0:00:06]} 31. Nd4 {[%clk 0:01:00]}  Ne5 {[%clk 0:00:03]} 32. Rxb2 {[%clk 0:00:59]}  Ng4 {[%clk 0:00:04]} 33. h3 {[%clk 0:00:58]}  Ne5 {[%clk 0:00:04]} 34. Nc6 {[%clk 0:00:51]}  Nxc6 {[%clk 0:00:03]} 35. Rb6+ {[%clk 0:00:51]}  Ka5 {[%clk 0:00:04]} 36. Rxc6 {[%clk 0:00:52]}  Re8 {[%clk 0:00:04]} 37. Kf3 {[%clk 0:00:51]}  Kb5 {[%clk 0:00:05]} 38. Rc5+ {[%clk 0:00:51]}  Kb4 {[%clk 0:00:05]} 39. Rxg5 {[%clk 0:00:52]}  Kc4 {[%clk 0:00:05]} 40. Rf5 {[%clk 0:00:52]}  Kd3 {[%clk 0:00:05]} 41. Rxf7 {[%clk 0:00:51]}  h5 {[%clk 0:00:06]} 42. Rf5 {[%clk 0:00:49]}  h4 {[%clk 0:00:06]} 43. Rd5+ {[%clk 0:00:49]}  Kc2 {[%clk 0:00:06]} 44. Bf4 {[%clk 0:00:48]}  Rg8 {[%clk 0:00:04]} 45. e5 {[%clk 0:00:48]}  Kc3 {[%clk 0:00:04]} 46. e6 {[%clk 0:00:48]}  Kc4 {[%clk 0:00:05]} 47. Re5 {[%clk 0:00:48]}  Re8 {[%clk 0:00:05]} 48. e7 {[%clk 0:00:47]}  Kd4 {[%clk 0:00:06]} 49. Kg4 {[%clk 0:00:47]}  Kd3 {[%clk 0:00:06]} 50. Kf5 {[%clk 0:00:48]}  Kd4 {[%clk 0:00:06]} 51. Kf6 {[%clk 0:00:48]} 1-0


[Site "https://www.chess.com"]